fUSD/lending_fUSD_20241223
["ID","MTS","AMOUNT","RATE_DAILY","PERIOD"]
[346478426,1734994239478,-151.0,0.00013698,2]
[346478427,1734994239488,-160.096487,0.00013698,2]
[346478428,1734994239497,-500.0,0.00013698,2]
[346478429,1734994239506,-1521.82,0.00013698,2]
[346478430,1734994239515,-1055.98,0.00013698,2]
[346478431,1734994239524,-500.0,0.00013698,2]
[346478432,1734994239534,-500.0,0.00013698,2]
[346478433,1734994239543,-500.0,0.00013698,2]
[346478434,1734994239552,-1313.98,0.00013698,2]
[346478435,1734994239561,-500.0,0.00013698,2]
[346478436,1734994239570,-500.0,0.00013698,2]
[346478437,1734994239580,-500.0,0.00013698,2]
[346478438,1734994239589,-4455.6,0.00013698,2]
[346478439,1734994239598,-500.0,0.00013698,2]
[346478440,1734994239608,-500.0,0.00013698,2]
[346478441,1734994239617,-784.14,0.00013698,2]
[346478442,1734994239627,-845.04,0.00013698,2]
[346478443,1734994239636,-1667.62,0.00013698,2]
[346478444,1734994239646,-289.98161,0.00013698,2]
[346478445,1734994239655,-289.98161,0.00013698,2]
[346478446,1734994239664,-1189.32,0.00013698,2]
[346478447,1734994239674,-289.98161,0.00013698,2]
[346478448,1734994239683,-289.98161,0.00013698,2]
[346478449,1734994239693,-229.42635,0.00013698,2]
[346478450,1734994239701,-500.0,0.00013698,2]
[346478451,1734994239711,-831.37,0.00013698,2]
[346478452,1734994239720,-289.98161,0.00013698,2]
[346478453,1734994239730,-289.98161,0.00013698,2]
[346478454,1734994239739,-500.0,0.00013698,2]
[346478455,1734994239749,-1900.85,0.00013698,2]
[346478456,1734994239758,-725.43,0.00013698,2]
[346478457,1734994239768,-289.98161,0.00013698,2]
[346478458,1734994239778,-289.98161,0.00013698,2]
[346478459,1734994239788,-828.98,0.00013698,2]
[346478460,1734994239798,-917.85,0.00013698,2]
[346478461,1734994239807,-609.89,0.00013698,2]
[346478462,1734994239816,-2092.67,0.00013698,2]
[346478463,1734994239825,-565.84,0.00013698,2]
[346478464,1734994239834,-977.08,0.00013698,2]
[346478465,1734994239844,-1232.7,0.00013698,2]
[346478466,1734994239853,-500.0,0.00013698,2]
[346478467,1734994239862,-151.0,0.00013698,2]
[346478468,1734994239871,-500.0,0.00013698,2]
[346478469,1734994239881,-151.0,0.00013698,2]
[346478470,1734994239891,-3185.26,0.00013698,2]
[346478471,1734994239900,-151.0,0.00013698,2]
[346478472,1734994239987,-227.213426,0.00013698,2]
[346478473,1734994239996,-1329.31,0.00013698,2]
[346478474,1734994240006,-500.0,0.00013698,2]
[346478475,1734994240015,-500.0,0.00013698,2]
[346478476,1734994240024,-4535.24,0.00013698,2]
[346478477,1734994240033,-374.38239802,0.00013698,2]
[346478478,1734994240043,-2652.97,0.00013698,2]
[346478479,1734994240053,-5420.92,0.00013698,2]
[346478480,1734994240062,-500.0,0.00013698,2]
[346478481,1734994240072,-580.7,0.00013698,2]
[346478482,1734994240081,-500.0,0.00013698,2]
[346478483,1734994240090,-745.35,0.00013698,2]
[346478484,1734994240099,-151.0,0.00013698,2]
[346478485,1734994240108,-151.0,0.00013698,2]
[346478486,1734994240117,-151.0,0.00013698,2]
[346478487,1734994240126,-7948.779203,0.00013698,2]
[346478488,1734994240135,-7948.779203,0.00013698,2]
[346478489,1734994240144,-7948.779203,0.00013698,2]
[346478490,1734994240154,-1687.7,0.00013698,2]
[346478491,1734994240162,-3278.19,0.00013698,2]
[346478492,1734994240172,-12692.34,0.00013698,2]
[346478493,1734994240181,-500.0,0.00013698,2]
[346478494,1734994240190,-7948.779203,0.00013698,2]
[346478495,1734994240199,-7948.779203,0.00013698,2]
[346478496,1734994240208,-7948.779203,0.00013698,2]
[346478497,1734994240217,-7948.779203,0.00013698,2]
[346478499,1734994240226,-151.0,0.00013698,2]
[346478500,1734994240235,-500.0,0.00013698,2]
[346478502,1734994240244,-151.0,0.00013698,2]
[346478503,1734994240254,-151.0,0.00013698,2]
[346478504,1734994240264,-1003.48,0.00013698,2]
[346478505,1734994240273,-500.0,0.00013698,2]
[346478506,1734994240281,-1152.85,0.00013698,2]
[346478507,1734994240290,-2287.23,0.00013698,2]
[346478508,1734994240299,-2268.35,0.00013698,2]
[346478509,1734994240309,-2925.17,0.00013698,2]
[346478510,1734994240318,-500.0,0.00013698,2]
[346478511,1734994240327,-721.37,0.00013698,2]
[346478514,1734994240335,-1310.46,0.00013698,2]
[346478515,1734994240344,-500.0,0.00013698,2]
[346478517,1734994240353,-1600.63,0.00013698,2]
[346478519,1734994240363,-569.25,0.00013698,2]
[346478520,1734994240377,-500.0,0.00013698,2]
[346478521,1734994240386,-500.0,0.00013698,2]
[346478522,1734994240395,-500.0,0.00013698,2]
[346478523,1734994240405,-500.0,0.00013698,2]
[346478524,1734994240414,-1053.02,0.00013698,2]
[346478525,1734994240423,-500.0,0.00013698,2]
[346478526,1734994240432,-1741.39,0.00013698,2]
[346478527,1734994240443,-2507.15,0.00013698,2]
[346478528,1734994240452,-1355.74,0.00013698,2]
[346478529,1734994240461,-500.0,0.00013698,2]
[346478530,1734994240470,-711.23,0.00013698,2]
[346478531,1734994240479,-500.0,0.00013698,2]
[346478532,1734994240488,-500.0,0.00013698,2]
[346478533,1734994240497,-151.0,0.00013698,2]
[346478534,1734994240506,-151.0,0.00013698,2]
[346478535,1734994240515,-151.0,0.00013698,2]
[346478536,1734994240524,-901.69,0.00013698,2]
[346478537,1734994240534,-500.0,0.00013698,2]
[346478538,1734994240542,-1757.96,0.00013698,2]
[346478539,1734994240551,-151.0,0.00013698,2]
[346478540,1734994240560,-1035.03,0.00013698,2]
[346478541,1734994240570,-594.32,0.00013698,2]
[346478542,1734994240580,-500.0,0.00013698,2]
[346478543,1734994240589,-500.0,0.00013698,2]
[346478544,1734994240599,-1403.45,0.00013698,2]
[346478545,1734994240608,-5763.91,0.00013698,2]
[346478546,1734994240618,-682.67,0.00013698,2]
[346478547,1734994240627,-2662.5,0.00013698,2]
[346478548,1734994240638,-765.55,0.00013698,2]
[346478549,1734994240647,-151.695805,0.00013698,2]
[346478550,1734994240657,-403.34409484,0.00013698,2]
[346478551,1734994240666,-2324.3,0.00013698,2]
[346478552,1734994240676,-500.0,0.00013698,2]
[346478553,1734994240685,-1200.09,0.00013698,2]
[346478554,1734994240694,-236.747922,0.00013698,2]
[346478555,1734994240703,-236.747922,0.00013698,2]
[346478556,1734994240712,-500.0,0.00013698,2]
[346478557,1734994240722,-236.747922,0.00013698,2]
[346478558,1734994240731,-236.747922,0.00013698,2]
[346478559,1734994240740,-500.0,0.00013698,2]
[346478560,1734994240749,-1649.96,0.00013698,2]
[346478561,1734994240759,-710.17,0.00013698,2]
[346478562,1734994240768,-1049.45,0.00013698,2]
[346478563,1734994240778,-3057.43,0.00013698,2]
[346478564,1734994240786,-236.747922,0.00013698,2]
[346478565,1734994240796,-236.747922,0.00013698,2]
[346478566,1734994240805,-236.747922,0.00013698,2]
[346478567,1734994240814,-236.747922,0.00013698,2]
[346478568,1734994240823,-921.72,0.00013698,2]
[346478569,1734994240832,-2698.19,0.00013698,2]
[346478570,1734994240841,-2222.98,0.00013698,2]
[346478571,1734994240850,-2757.11,0.00013698,2]
[346478572,1734994240859,-500.0,0.00013698,2]
[346478573,1734994240869,-375.65709991,0.00013698,2]
[346478574,1734994240878,-836.04,0.00013698,2]
[346478575,1734994240887,-747.45,0.00013698,2]
[346478576,1734994240896,-500.0,0.00013698,2]
[346478577,1734994240905,-2287.23,0.00013698,2]
[346478579,1734994240914,-500.0,0.00013698,2]
[346478581,1734994240924,-1476.95,0.00013698,2]
[346478582,1734994240933,-500.0,0.00013698,2]
[346478583,1734994240942,-500.0,0.00013698,2]
[346478584,1734994240951,-513.47,0.00013698,2]
[346478585,1734994240960,-500.0,0.00013698,2]
[346478586,1734994240969,-500.0,0.00013698,2]
[346478587,1734994240978,-500.0,0.00013698,2]
[346478588,1734994240987,-2131.6,0.00013698,2]
[346478589,1734994240996,-2943.9,0.00013698,2]
[346478590,1734994241005,-677.63,0.00013698,2]
[346478591,1734994241015,-500.24,0.00013698,2]
[346478592,1734994241023,-500.0,0.00013698,2]
[346478593,1734994241032,-2675.56,0.00013698,2]
[346478594,1734994241041,-500.0,0.00013698,2]
[346478595,1734994241050,-3789.1,0.00013698,2]
[346478596,1734994241059,-500.0,0.00013698,2]
[346478597,1734994241068,-5352.87,0.00013698,2]
[346478598,1734994241077,-2348.46,0.00013698,2]
[346478599,1734994241086,-151.0,0.00013698,2]
[346478600,1734994241096,-151.0,0.00013698,2]
[346478601,1734994241106,-151.0,0.00013698,2]
[346478602,1734994241116,-151.0,0.00013698,2]
[346478603,1734994241126,-679.88,0.00013698,2]
[346478604,1734994241136,-799.41,0.00013698,2]
[346478605,1734994241145,-500.0,0.00013698,2]
[346478606,1734994241153,-1476.12,0.00013698,2]
[346478607,1734994241162,-2325.89,0.00013698,2]
[346478608,1734994241171,-1342.17,0.00013698,2]
[346478609,1734994241180,-488.958896,0.00013698,2]
[346478610,1734994241189,-488.958896,0.00013698,2]
[346478611,1734994241198,-488.958896,0.00013698,2]
[346478612,1734994241207,-488.958896,0.00013698,2]
[346478613,1734994241216,-5229.04,0.00013698,2]
[346478614,1734994241225,-1364.07,0.00013698,2]
[346478615,1734994241235,-7020.2,0.00013698,2]
[346478616,1734994241243,-500.0,0.00013698,2]
[346478617,1734994241253,-952.17,0.00013698,2]
[346478618,1734994241262,-27708.32,0.00013698,2]
[346478619,1734994241270,-488.958896,0.00013698,2]
[346478620,1734994241279,-674.98,0.00013698,2]
[346478621,1734994241288,-488.958896,0.00013698,2]
[346478622,1734994241297,-831.42,0.00013698,2]
[346478623,1734994241307,-488.958896,0.00013698,2]
[346478624,1734994241317,-1245.57,0.00013698,2]
[346478625,1734994241326,-488.958896,0.00013698,2]
[346478626,1734994241335,-500.0,0.00013698,2]
[346478627,1734994241344,-500.0,0.00013698,2]
[346478628,1734994241354,-3678.4,0.00013698,2]
[346478629,1734994241364,-1234.0,0.00013698,2]
[346478630,1734994241376,-896.98,0.00013698,2]
[346478631,1734994241385,-611.1,0.00013698,2]
[346478632,1734994241394,-500.0,0.00013698,2]
[346478633,1734994241403,-683.78,0.00013698,2]
[346478634,1734994241413,-4345.79,0.00013698,2]
[346478635,1734994241422,-2249.43,0.00013698,2]
[346478636,1734994241431,-500.0,0.00013698,2]
[346478637,1734994241440,-12943.07,0.00013698,2]
[346478638,1734994241451,-3455.31,0.00013698,2]
[346478639,1734994241461,-500.0,0.00013698,2]
[346478640,1734994241470,-944.4,0.00013698,2]
[346478641,1734994241479,-500.0,0.00013698,2]
[346478642,1734994241489,-4791.3,0.00013698,2]
[346478643,1734994241498,-512.56160587,0.00013698,2]
[346478644,1734994241507,-151.0,0.00013698,2]
[346478645,1734994241516,-151.0,0.00013698,2]
[346478646,1734994241525,-500.0,0.00013698,2]
[346478647,1734994241534,-151.0,0.00013698,2]
[346478648,1734994241543,-151.0,0.00013698,2]
[346478649,1734994241553,-3589.28,0.00013698,2]
[346478650,1734994241563,-8849.6,0.00013698,2]
[346478651,1734994241572,-663.03,0.00013698,2]
[346478652,1734994241581,-640.67,0.00013698,2]
[346478653,1734994241591,-500.0,0.00013698,2]
[346478654,1734994241600,-500.0,0.00013698,2]
[346478655,1734994241609,-1838.43,0.00013698,2]
[346478656,1734994241618,-2480.85,0.00013698,2]
[346478657,1734994241628,-4777.39,0.00013698,2]
[346478658,1734994241638,-2815.5,0.00013698,2]
[346478659,1734994241647,-514.23,0.00013698,2]
[346478660,1734994241656,-2931.25,0.00013698,2]
[346478661,1734994241665,-7936.63,0.00013698,2]
[346478662,1734994241673,-500.0,0.00013698,2]
[346478663,1734994241683,-683.93,0.00013698,2]
[346478664,1734994241692,-500.0,0.00013698,2]
[346478665,1734994241701,-500.0,0.00013698,2]
[346478666,1734994241710,-542.35,0.00013698,2]
[346478667,1734994241719,-2904.45,0.00013698,2]
[346478668,1734994241729,-500.0,0.00013698,2]
[346478669,1734994241738,-938.94,0.00013698,2]
[346478670,1734994241747,-3178.54,0.00013698,2]
[346478671,1734994241757,-151.0,0.00013698,2]
[346478672,1734994241767,-151.0,0.00013698,2]
[346478673,1734994241776,-7514.62,0.00013698,2]
[346478674,1734994241785,-1064.73,0.00013698,2]
[346478675,1734994241795,-500.0,0.00013698,2]
[346478676,1734994241804,-500.0,0.00013698,2]
[346478677,1734994241813,-500.0,0.00013698,2]
[346478678,1734994241822,-3232.93,0.00013698,2]
[346478679,1734994241831,-1204.31,0.00013698,2]
[346478680,1734994241839,-591.45,0.00013698,2]
[346478681,1734994241848,-636.84,0.00013698,2]
[346478682,1734994241857,-543.81,0.00013698,2]
[346478683,1734994241866,-10801.09,0.00013698,2]
[346478684,1734994241875,-1603.77,0.00013698,2]
[346478685,1734994241884,-1825.56,0.00013698,2]
[346478686,1734994241895,-2184.14,0.00013698,2]
[346478687,1734994241904,-1161.01,0.00013698,2]
[346478688,1734994241913,-1064.2,0.00013698,2]
[346478689,1734994241923,-705.68,0.00013698,2]
[346478690,1734994241932,-500.0,0.00013698,2]
[346478691,1734994241941,-3170.28,0.00013698,2]
[346478692,1734994241950,-5714.8,0.00013698,2]
[346478693,1734994241959,-7136.07,0.00013698,2]
[346478694,1734994241969,-500.0,0.00013698,2]
[346478695,1734994241978,-861.19,0.00013698,2]
[346478696,1734994241987,-500.0,0.00013698,2]
[346478697,1734994241996,-500.0,0.00013698,2]
[346478698,1734994242005,-597.79,0.00013698,2]
[346478699,1734994242014,-1136.21,0.00013698,2]
[346478700,1734994242023,-500.0,0.00013698,2]
[346478701,1734994242032,-500.0,0.00013698,2]
[346478702,1734994242041,-456.63260767,0.00013698,2]
[346478703,1734994242050,-1389.28,0.00013698,2]
[346478704,1734994242059,-3118.29,0.00013698,2]
[346478705,1734994242068,-2919.65,0.00013698,2]
[346478706,1734994242077,-500.0,0.00013698,2]
[346478707,1734994242086,-503.91242629,0.00013698,2]
[346478708,1734994242094,-567.0,0.00013698,2]
[346478709,1734994242103,-1670.24,0.00013698,2]
[346478710,1734994242112,-500.0,0.00013698,2]
[346478711,1734994242120,-4031.92,0.00013698,2]
[346478712,1734994242129,-1007.94,0.00013698,2]
[346478713,1734994242139,-500.0,0.00013698,2]
[346478714,1734994242148,-2396.59,0.00013698,2]
[346478715,1734994242157,-151.0,0.00013698,2]
[346478716,1734994242166,-151.0,0.00013698,2]
[346478717,1734994242175,-500.0,0.00013698,2]
[346478718,1734994242184,-151.0,0.00013698,2]
[346478719,1734994242193,-2827.96,0.00013698,2]
[346478720,1734994242202,-500.0,0.00013698,2]
[346478721,1734994242211,-500.0,0.00013698,2]
[346478722,1734994242219,-3167.19,0.00013698,2]
[346478723,1734994242228,-500.0,0.00013698,2]
[346478724,1734994242237,-957.69,0.00013698,2]
[346478725,1734994242246,-5853.6,0.00013698,2]
[346478726,1734994242255,-506.96,0.00013698,2]
[346478727,1734994242264,-2333.97,0.00013698,2]
[346478728,1734994242273,-1264.69,0.00013698,2]
[346478729,1734994242281,-500.0,0.00013698,2]
[346478730,1734994242290,-501.66240641,0.00013698,2]
[346478731,1734994242299,-812.07,0.00013698,2]
[346478732,1734994242308,-566.77,0.00013698,2]
[346478733,1734994242317,-755.41,0.00013698,2]
[346478734,1734994242326,-639.64,0.00013698,2]
[346478735,1734994242335,-1082.03,0.00013698,2]
[346478736,1734994242343,-993.08,0.00013698,2]
[346478737,1734994242352,-18861.64,0.00013698,2]
[346478738,1734994242362,-669.75,0.00013698,2]
[346478739,1734994242373,-2545.19,0.00013698,2]
[346478740,1734994242382,-500.0,0.00013698,2]
[346478741,1734994242393,-500.0,0.00013698,2]
[346478742,1734994242402,-1077.37,0.00013698,2]
[346478743,1734994242411,-3463.7,0.00013698,2]
[346478744,1734994242421,-500.0,0.00013698,2]
[346478745,1734994242429,-782.13,0.00013698,2]
[346478746,1734994242439,-19248.8,0.00013698,2]
[346478747,1734994242449,-17555.76,0.00013698,2]
[346478748,1734994242458,-1545.58,0.00013698,2]
[346478749,1734994242468,-950.5,0.00013698,2]
[346478750,1734994242477,-500.0,0.00013698,2]
[346478751,1734994242486,-607.99,0.00013698,2]
[346478752,1734994242495,-500.0,0.00013698,2]
[346478753,1734994242504,-500.0,0.00013698,2]
[346478754,1734994242514,-500.0,0.00013698,2]
[346478755,1734994242523,-500.0,0.00013698,2]
[346478756,1734994242532,-927.23,0.00013698,2]
[346478757,1734994242541,-200.0,0.00013699,2]
[346478758,1734994242551,-150.39,0.00013699,2]
[346478759,1734994242560,-258.512329,0.00013699,2]
[346478760,1734994242569,-151.0,0.00013699,2]
[346478761,1734994242578,-346.533882,0.00013699,2]
[346478762,1734994242587,-346.533882,0.00013699,2]
[346478763,1734994242596,-329.090771,0.00013699,2]
[346478764,1734994242606,-329.090771,0.00013699,2]
[346478765,1734994242614,-151.0,0.00013699,2]
[346478766,1734994242624,-151.0,0.00013699,2]
[346478767,1734994242633,-151.0,0.00013699,2]
[346478768,1734994242643,-151.0,0.00013699,2]
[346478769,1734994242652,-245.383291,0.00013699,2]
[346478770,1734994242662,-151.0,0.00013699,2]
[346478771,1734994242671,-428.573174,0.00013699,2]
[346478772,1734994242680,-428.573174,0.00013699,2]
[346478773,1734994242689,-2351.94,0.000137,2]
[346478774,1734994242699,-2351.94,0.000137,2]
[346478775,1734994242709,-2351.94,0.000137,2]
[346478776,1734994242718,-2351.94,0.000137,2]
[346478777,1734994242727,-2351.94,0.000137,2]
[346478778,1734994242736,-1634.0,0.000137,2]
[346478779,1734994242745,-1630.0,0.000137,2]
[346478780,1734994242754,-2027.0,0.00013714,2]
[346478781,1734994242764,-8286.93957363,0.00013755,2]
[346478782,1734994242773,-1000.0,0.000138,2]
[346478783,1734994242782,-1302.0,0.000138,2]
[346478784,1734994242791,-1000.0,0.000138,2]
[346478785,1734994242800,-1000.0,0.000138,2]
[346478786,1734994242809,-500.0,0.0001386,2]
[346478787,1734994242818,-500.0,0.00013871,2]
[346478788,1734994242827,-8286.93957363,0.00013886,2]
[346478789,1734994242835,-574.8,0.00013971,2]
[346478790,1734994242844,-500.0,0.00013971,2]
[346478791,1734994242853,-500.0,0.00013971,2]
[346478792,1734994242862,-393.85,0.00013971,2]
[346478793,1734994242871,-500.0,0.00013971,2]
[346478794,1734994242880,-500.0,0.00013971,2]
[346478795,1734994242890,-500.0,0.00013971,2]
[346478796,1734994242898,-500.0,0.00013971,2]
[346478797,1734994242908,-711.9,0.00013972,2]
[346478798,1734994242917,-151.0,0.00013972,2]
[346478799,1734994242926,-176.351836,0.00013972,2]
[346478800,1734994242934,-500.0,0.00013972,2]
[346478801,1734994242943,-581.06,0.00013972,2]
[346478802,1734994242952,-500.0,0.00013972,2]
[346478803,1734994242961,-500.0,0.00013972,2]
[346478804,1734994242970,-557.82,0.00013972,2]
[346478805,1734994242979,-500.0,0.00013972,2]
[346478806,1734994242987,-875.72,0.00013972,2]
[346478807,1734994242996,-500.0,0.00013972,2]
[346478808,1734994243005,-500.0,0.00013972,2]
[346478809,1734994243014,-500.0,0.00013972,2]
[346478810,1734994243023,-500.0,0.00013972,2]
[346478811,1734994243032,-1002.23,0.00013972,2]
[346478812,1734994243041,-500.0,0.00013972,2]
[346478813,1734994243050,-500.0,0.00013972,2]
[346478814,1734994243058,-684.23,0.00013972,2]
[346478815,1734994243067,-500.0,0.00013972,2]
[346478816,1734994243076,-500.0,0.00013972,2]
[346478817,1734994243085,-500.0,0.00013972,2]
[346478818,1734994243094,-500.0,0.00013972,2]
[346478819,1734994243103,-690.21,0.00013972,2]
[346478820,1734994243112,-500.0,0.00013972,2]
[346478821,1734994243120,-500.0,0.00013972,2]
[346478822,1734994243129,-500.0,0.00013972,2]
[346478823,1734994243138,-500.0,0.00013972,2]
[346478824,1734994243146,-558.1,0.00013972,2]
[346478825,1734994243155,-500.0,0.00013972,2]
[346478826,1734994243164,-500.0,0.00013972,2]
[346478827,1734994243173,-592.75,0.00013972,2]
[346478828,1734994243182,-500.0,0.00013972,2]
[346478829,1734994243191,-500.0,0.00013972,2]
[346478830,1734994243200,-500.0,0.00013972,2]
[346478831,1734994243209,-500.0,0.00013972,2]
[346478832,1734994243217,-1034.55,0.00013972,2]
[346478833,1734994243226,-590.94,0.00013972,2]
[346478834,1734994243235,-500.0,0.00013972,2]
[346478835,1734994243244,-500.0,0.00013972,2]
[346478836,1734994243253,-828.18,0.00013972,2]
[346478837,1734994243262,-500.0,0.00013972,2]
[346478838,1734994243271,-157.34886883,0.00013972,2]
[346478839,1734994243280,-629.62,0.00013972,2]
[346478841,1734994243289,-649.04,0.00013972,2]
[346478842,1734994243298,-500.0,0.00013972,2]
[346478843,1734994243306,-500.0,0.00013972,2]
[346478844,1734994243315,-351.50311803,0.00013972,2]
[346478845,1734994243324,-500.0,0.00013972,2]
[346478846,1734994243333,-500.0,0.00013972,2]
[346478847,1734994243342,-500.0,0.00013972,2]
[346478848,1734994243351,-500.0,0.00013972,2]
[346478849,1734994243361,-500.0,0.00013972,2]
[346478850,1734994243373,-500.0,0.00013972,2]
[346478851,1734994243382,-680.72,0.00013972,2]
[346478852,1734994243391,-500.0,0.00013972,2]
[346478853,1734994243400,-932.28,0.00013972,2]
[346478854,1734994243409,-908.14,0.00013972,2]
[346478856,1734994243418,-500.0,0.00013972,2]
[346478858,1734994243427,-500.0,0.00013972,2]
[346478859,1734994243436,-688.85,0.00013972,2]
[346478862,1734994243446,-789.86,0.00013972,2]
[346478865,1734994243455,-500.0,0.00013972,2]
[346478867,1734994243464,-500.0,0.00013972,2]
[346478868,1734994243473,-500.0,0.00013972,2]
[346478869,1734994243482,-690.64,0.00013972,2]
[346478870,1734994243491,-347.85259712,0.00013972,2]
[346478871,1734994243500,-500.0,0.00013972,2]
[346478872,1734994243509,-500.0,0.00013972,2]
[346478873,1734994243518,-500.0,0.00013972,2]
[346478874,1734994243527,-527.09,0.00013972,2]
[346478875,1734994243535,-500.0,0.00013972,2]
[346478876,1734994243545,-500.0,0.00013972,2]
[346478877,1734994243554,-500.0,0.00013972,2]
[346478878,1734994243563,-491.85643271,0.00013972,2]
[346478879,1734994243572,-500.0,0.00013972,2]
[346478880,1734994243580,-857.54,0.00013972,2]
[346478881,1734994243589,-500.0,0.00013972,2]
[346478882,1734994243598,-509.48544524,0.00013972,2]
[346478883,1734994243607,-500.0,0.00013972,2]
[346478884,1734994243616,-838.4,0.00013972,2]
[346478885,1734994243625,-743.03,0.00013972,2]
[346478886,1734994243634,-677.83,0.00013972,2]
[346478887,1734994243644,-500.0,0.00013972,2]
[346478888,1734994243654,-500.0,0.00013972,2]
[346478889,1734994243663,-500.0,0.00013972,2]
[346478890,1734994243673,-974.97,0.00013972,2]
[346478891,1734994243682,-500.0,0.00013972,2]
[346478892,1734994243691,-500.0,0.00013972,2]
[346478893,1734994243701,-682.27,0.00013972,2]
[346478894,1734994243710,-620.83,0.00013972,2]
[346478895,1734994243720,-500.0,0.00013972,2]
[346478896,1734994243729,-196.6372098,0.00013972,2]
[346478897,1734994243738,-517.18,0.00013972,2]
[346478899,1734994243748,-1034.77,0.00013972,2]
[346478900,1734994243757,-500.0,0.00013972,2]
[346478901,1734994243766,-500.0,0.00013972,2]
[346478902,1734994243775,-500.0,0.00013972,2]
[346478903,1734994243784,-500.0,0.00013972,2]
[346478904,1734994243792,-687.98,0.00013972,2]
[346478905,1734994243811,-623.92,0.00013972,2]
[346478906,1734994243820,-500.0,0.00013972,2]
[346478907,1734994243829,-500.0,0.00013972,2]
[346478908,1734994243838,-500.0,0.00013972,2]
[346478909,1734994243846,-914.74,0.00013972,2]
[346478910,1734994243855,-500.0,0.00013972,2]
[346478911,1734994243865,-500.0,0.00013972,2]
[346478912,1734994243874,-500.0,0.00013972,2]
[346478920,1734994243984,-163.45389904,0.00013972,2]
[346478923,1734994244003,-954.12,0.00013972,2]
[346478924,1734994244012,-258.512329,0.00013972,2]
[346478925,1734994244021,-258.512329,0.00013972,2]
[346478926,1734994244031,-502.23,0.00013972,2]
[346478927,1734994244040,-258.512329,0.00013972,2]
[346478928,1734994244049,-258.512329,0.00013972,2]
[346478929,1734994244058,-500.0,0.00013972,2]
[346478930,1734994244068,-500.0,0.00013972,2]
[346478931,1734994244077,-258.512329,0.00013972,2]
[346478932,1734994244087,-500.0,0.00013972,2]
[346478933,1734994244096,-500.0,0.00013972,2]
[346478934,1734994244105,-500.0,0.00013972,2]
[346478935,1734994244115,-500.0,0.00013972,2]
[346478936,1734994244124,-854.32,0.00013972,2]
[346478937,1734994244133,-500.0,0.00013972,2]
[346478938,1734994244143,-1657.5,0.00013972,2]
[346478939,1734994244152,-500.0,0.00013972,2]
[346478940,1734994244161,-500.0,0.00013972,2]
[346478941,1734994244170,-768.98,0.00013972,2]
[346478942,1734994244179,-500.0,0.00013972,2]
[346478943,1734994244189,-1147.66,0.00013972,2]
[346478944,1734994244198,-917.47,0.00013972,2]
[346478945,1734994244207,-500.0,0.00013972,2]
[346478946,1734994244217,-500.0,0.00013972,2]
[346478947,1734994244226,-932.23,0.00013972,2]
[346478948,1734994244235,-500.0,0.00013972,2]
[346478949,1734994244244,-500.0,0.00013972,2]
[346478950,1734994244253,-500.0,0.00013972,2]
[346478951,1734994244262,-900.35,0.00013972,2]